Cogmind - Beta 13 @@@ ROGUE MODE // 2024.07.11 @ 13:00:16 Player: ywiktor Result: Destroyed by C2-R2B(R) with Subdweller Shrapnel Launcher Performance ------------- Evolutions (0) 0 Regions Visited (3) 600 Robots Destroyed (24) 120 Value Destroyed (640) 640 Prototype IDs (1) 20 Alien Tech Used (0) 0 Bonus (0) 0 TOTAL SCORE: 1380 Bonus ------- None Cogmind --------- Core Integrity 0/250 Matter 200/300 Energy 200/200 System Corruption 2% Temperature Cool (0) Movement Walking (190) Ox1 Location -10/Subcaves Parts ------- > --- POWER (1) -------- Subdweller Power Source > --- PROPULSION (2) --- Aluminum Leg Aluminum Leg > --- UTILITY (2) ------ Large Storage Unit Makeshift Light Armor Plating > --- WEAPON (2) ------- Improved Assault Rifle Improved Assault Rifle > --- INVENTORY (15) --- Light Ion Engine Light Ion Engine Compact Wheel Medium Storage Unit Hacking Suite Hacking Suite Heavy EM Pulse Gun Improved Light Cannon Improved Light Cannon Battle Cannon Peak State ------------ > --- POWER ------------ Subdweller Power Source > --- PROPULSION ------- Aluminum Leg Aluminum Leg > --- UTILITY ---------- Large Storage Unit Makeshift Light Armor Plating > --- WEAPON ----------- Improved Assault Rifle Improved Assault Rifle > --- INVENTORY -------- Light Ion Engine Light Ion Engine Compact Wheel Medium Storage Unit Hacking Suite Hacking Suite Heavy EM Pulse Gun Improved Light Cannon Improved Light Cannon Battle Cannon [Rating: 16] Favorites ----------- Power Light Ion Engine Engine Light Ion Engine Power Core Light Nuclear Core Propulsion Aluminum Leg Leg Aluminum Leg Utility Large Storage Unit Device Improved Heat Sink Storage Large Storage Unit Processor Signal Interpreter Protection Makeshift Light Armor Plating Weapon Improved Assault Rifle Energy Gun EM Pulse Gun Ballistic Gun Improved Assault Rifle Launcher Grenade Launcher Build | -11 -10 -10 -10 ------- Run | Yrd Mat Min Sub Slots Evolved . | . . . . Power . | . . . . Propulsion . | . . . . Utility . | . . . . Weapon . | . . . . Parts Attached 27 | 5 13 1 8 Power 4 | 1 1 1 1 Engine 3 | 1 1 . 1 Core 1 | . . 1 . Reactor . | . . . . Propulsion 8 | 2 4 . 2 Treads . | . . . . Leg 8 | 2 4 . 2 Wheel . | . . . . Hover . | . . . . Flight . | . . . . Utility 6 | 1 4 . 1 Device 1 | . 1 . . Storage 3 | 1 2 . . Processor 1 | . 1 . . Hackware . | . . . . Protection 1 | . . . 1 Artifact . | . . . . Weapon 9 | 1 4 . 4 Energy Gun 1 | . 1 . . Energy Cannon . | . . . . Ballistic Gun 6 | 1 3 . 2 Ballistic Cannon . | . . . . Launcher 2 | . . . 2 Special Weapon . | . . . . Impact Weapon . | . . . . Slashing Weapon . | . . . . Piercing Weapon . | . . . . Special Melee Weapon . | . . . . Unidentified Prototypes 1 | . 1 . . Parts Lost 7 | . 3 . 4 Power 1 | . 1 . . Propulsion 4 | . 2 . 2 Utility . | . . . . Weapon 2 | . . . 2 Highest Loss Streak 4 | . 1 . 4 To Critical Strikes . | . . . . Average Slot Usage (%) 95 | . 92 100 99 Engine 7 | . 8 3 8 Core 3 | . . 10 5 Leg 27 | . 27 28 27 Device 2 | . 3 . . Storage 14 | . 14 14 14 Processor 8 | . 9 14 5 Protection 2 | . . . 8 Ballistic Gun 21 | . 26 28 9 Launcher 5 | . . . 18 Naked Turns . | . . . . Heaviest Build 35 | 10 29 31 35 Greatest Support 20 | 20 20 20 20 Greatest Overweight (x) 3 | . 2 1 3 Average Overweight (x) . | . . 1 1 Largest Inventory Capacity 15 | 8 15 15 15 Average Capacity 13 | 7 12 15 15 Most Carried 15 | 4 11 13 15 Average Carried 10 | 2 9 12 13 Final Capacity 15 | 8 15 15 15 Final Carried 13 | 4 10 13 10 Class Distribution -------------------- 79% | Mutant 20% | Scavenger-Mutant Dominant Class ---------------- Mutant | -10/Materials Scavenger-Mutant | -10/Mines Mutant | -10/Subcaves Resources | -11 -10 -10 -10 ----------- Run | Yrd Mat Min Sub Matter Collected 810 | 245 278 135 152 Remotely . | . . . . Salvage Created 759 | . 564 135 60 Parts 44 | . 28 10 6 Haulers Intercepted . | . . . . Recyclers Shooed . | . . . . Parts Field Recycled . | . . . . Retrieved Matter . | . . . . Parts Self-Destructed 5 | . . . 5 Prevented . | . . . . Kills | -11 -10 -10 -10 ------- Run | Yrd Mat Min Sub Combat Hostiles Destroyed 20 | . 11 5 4 Guns 17 | . 11 5 1 AOE 3 | . . . 3 Classes Destroyed 6 | . 5 . 1 Recycler 1 | . 1 . . Operator 2 | . 2 . . Watcher 1 | . 1 . . Swarmer 6 | . 3 3 . Grunt 10 | . 8 2 . Subdweller 4 | . . . 4 Best Kill Streak 3 | . 3 3 3 Combat Bots Only 3 | . 3 3 3 Max Kills in Single Turn 2 | . 2 1 1 Gunslinging 1 | . 1 . . Exploded 1 | . . . 1 Melee . | . . . . Uniques/NPCs Destroyed . | . . . . Combat | -11 -10 -10 -10 -------- Run | Yrd Mat Min Sub Hostile Shots Fired 116 | . 79 14 23 Missed 32 | . 21 3 8 Damage Taken 1288 | . 608 110 570 Core 264 | . 91 41 132 Absorbed by Shields . | . . . . Core Remaining (%) 100 | 100 . . . Volleys Fired 66 | . 47 10 9 Largest 2 | . 2 2 2 Hottest 60 | . 60 46 60 Shots Fired 114 | . 76 20 18 Gun 100 | . 76 20 4 Cannon . | . . . . Launcher 14 | . . . 14 Special . | . . . . Kinetic 96 | . 72 20 4 Thermal . | . . . . Explosive 14 | . . . 14 Electromagnetic 4 | . 4 . . Robot Hit Streak 12 | . 12 6 7 Robot Miss Streak 2 | . 2 2 2 Penetration Max . | . . . . Secondary Targets 1 | . 1 . . Max Gunslinging Chain 1 | . 1 . . Shots Hit Robots 75 | . 52 11 12 Core Hits 36 | . 21 6 9 Critical Kills . | . . . . Critical Parts Destroyed . | . . . . Critical Strikes . | . . . . Melee Attacks . | . . . . Impact . | . . . . Slashing . | . . . . Piercing . | . . . . Sneak Attacks . | . . . . Combat Hostiles . | . . . . Follow-up Attacks . | . . . . Damage Inflicted 1397 | . 680 158 559 Guns 880 | . 679 158 43 Cannons . | . . . . Explosions 516 | . . . 516 Melee . | . . . . Ramming 1 | . 1 . . Kinetic 855 | . 654 158 43 Thermal . | . . . . Explosive 516 | . . . 516 Electromagnetic 25 | . 25 . . Impact . | . . . . Slashing . | . . . . Piercing . | . . . . Highest Corruption 2 | . 2 2 2 Average Corruption 2 | . 2 2 2 Corruption Purged . | . . . . Corruption Blocked . | . . . . Effects 27 | . 12 8 7 Message Errors 5 | . 2 3 . Matter Fused 9 | . 4 2 3 Heat Flow Errors 3 | . 1 . 2 Energy Discharges 7 | . 5 2 . Data Loss (minor) 2 | . . 1 1 Alerts 1 | . . . 1 Overload Shots . | . . . . Overflow Damage . | . . . . Projectiles . | . . . . Explosions . | . . . . Melee . | . . . . Knockbacks . | . . . . Impact . | . . . . Kinetic . | . . . . Secondary . | . . . . Self-Inflicted Damage 14 | . . . 14 Shots 2 | . . . 2 Rammed . | . . . . Targets Rammed 1 | . 1 . . Kicked 1 | . 1 . . Crushed . | . . . . Highest Temperature 205 | . 205 4 181 Average Temperature 72 | . 69 4 98 Received Heat Transfer 351 | . 258 27 66 Siege Activations . | . . . . Robots Corrupted . | . . . . Combat Hostiles . | . . . . Parts Fried . | . . . . Impact Corruptions . | . . . . Robots Melted . | . . . . Combat Hostiles . | . . . . Parts Melted . | . . . . Heat Transferred . | . . . . Parts Sabotaged . | . . . . Parts Stolen . | . . . . Parts Stripped . | . . . . Power Chain Reactions . | . . . . Alert | -11 -10 -10 -10 ------- Run | Yrd Mat Min Sub Peak Influence 232 | . 232 127 . Initial 7 | . . 7 . Average 59 | . 61 64 . Maximum Alert Level 1 | . 1 . . Low Security (%) 96 | 100 95 100 . Level 1 3 | . 4 . . Level 2 . | . . . . Level 3 . | . . . . Level 4 . | . . . . Level 5 . | . . . . High Security . | . . . . Max Security . | . . . . Squads Dispatched 3 | . 3 . . Investigation 1 | . 1 . . Extermination . | . . . . Reinforcement 2 | . 2 . . Assault . | . . . . Garrison . | . . . . Intercept . | . . . . Searches Triggered . | . . . . Construction Impeded . | . . . . Haulers Reinforced . | . . . . Active Scanning Responses . | . . . . Cargo Convoy Interrupts . | . . . . Stealth | -11 -10 -10 -10 --------- Run | Yrd Mat Min Sub Distress Signals 3 | . 3 . . Communications Jammed . | . . . . Distress Signals . | . . . . Times Spotted 30 | . 20 5 5 Peak Tracking Total 5 | . 5 2 2 Tactical Retreats . | . . . . Traps | -11 -10 -10 -10 ------- Run | Yrd Mat Min Sub Traps Triggered 2 | . 2 . . Indirectly . | . . . . Trap Hack Attempts . | . . . . Triggered . | . . . . Disarmed . | . . . . Reprogrammed . | . . . . Reused . | . . . . Traps Extracted . | . . . . Installed . | . . . . Triggered . | . . . . Machines | -11 -10 -10 -10 ---------- Run | Yrd Mat Min Sub Machines Disabled . | . . . . Max in Single Turn . | . . . . Machines Repaired . | . . . . Machines Dismantled . | . . . . Machines Sabotaged . | . . . . Overloaded Fab Kills . | . . . . Hacking | -11 -10 -10 -10 --------- Run | Yrd Mat Min Sub Machines Accessed 5 | . 5 . . Terminals 5 | . 5 . . Fabricators . | . . . . Repair Stations . | . . . . Recycling Units . | . . . . Scanalyzers . | . . . . Garrison Access . | . . . . Total Hacks 17 | . 17 . . Successful 7 | . 7 . . Failed 10 | . 10 . . Catastrophic 3 | . 3 . . Database Lockouts . | . . . . Manual 16 | . 16 . . Terminals 17 | . 17 . . Fabricators . | . . . . Repair Stations . | . . . . Recycling Units . | . . . . Scanalyzers . | . . . . Garrison Access . | . . . . Terminal Hacks 2 | . 2 . . Branch Access Points 1 | . 1 . . Alert Level 1 | . 1 . . Fabricator Hacks . | . . . . Repair Station Hacks . | . . . . Recycling Unit Hacks . | . . . . Scanalyzer . | . . . . Garrison Access Hacks . | . . . . Unauthorized Hacks 5 | . 5 . . Terminals 5 | . 5 . . Botnet 5 | . 5 . . Fabricators . | . . . . Repair Stations . | . . . . Recycling Units . | . . . . Scanalyzers . | . . . . Garrison Access . | . . . . Data Cores Recovered . | . . . . Used . | . . . . Hacking Detections 4 | . 4 . . Full Trace Events 1 | . 1 . . Feedback Events . | . . . . Feedback Blocked . | . . . . Robot Schematics Acquired . | . . . . Robots Built . | . . . . Authchips . | . . . . Time . | . . . . Total Robot Build Rating . | . . . . Part Schematics Acquired . | . . . . Parts Built . | . . . . Authchips . | . . . . Time . | . . . . Total Part Build Rating . | . . . . Parts Repaired . | . . . . Time . | . . . . Parts Recycled . | . . . . Recycled Matter . | . . . . Retrieved Matter . | . . . . Retrieved Components . | . . . . Parts Scanalyzed . | . . . . Part Schematics Acquired . | . . . . Parts Damaged . | . . . . Bothacking | -11 -10 -10 -10 ------------ Run | Yrd Mat Min Sub Used RIF Installer . | . . . . Robots Hacked . | . . . . Non-combat . | . . . . Combat . | . . . . Robot Hacks Applied . | . . . . Relay Couplers Released . | . . . . Fabnet Peak Effective % . | . . . . Robots Rewired . | . . . . Allies Hacked . | . . . . Hacks Repelled . | . . . . Allies | -11 -10 -10 -10 -------- Run | Yrd Mat Min Sub Total Allies . | . . . . Largest Group . | . . . . Highest-Rated Group . | . . . . Highest-Rated Ally . | . . . . Total Orders . | . . . . Ally Attacks . | . . . . Total Damage . | . . . . Kills . | . . . . Allies Corrupted . | . . . . Allies Melted . | . . . . Intel | -11 -10 -10 -10 ------- Run | Yrd Mat Min Sub Robot Analysis Total . | . . . . Derelict Logs Recovered . | . . . . Drone Launches . | . . . . Drone Recoveries . | . . . . Exploration | -11 -10 -10 -10 ------------- Run | Yrd Mat Min Sub Turns Passed 2221 | 67 1228 284 642 Spaces Moved 1025 | 50 562 97 316 Core 7 | 5 2 . . Treads . | . . . . Legs 1018 | 45 560 97 316 Wheels . | . . . . Hover . | . . . . Flight . | . . . . Fastest Speed 50 | 50 120 190 190 Average Speed 164 | 113 150 190 190 Slowest Speed 330 | 120 260 190 330 Overloaded Moves . | . . . . Propulsion Burnouts . | . . . . Robots Hopped . | . . . . Cave-ins Triggered . | . . . . Exploration Rate (%) 22 | 4 60 10 14 Regions Visited 3 Branch Regions 2 Pre-discovered Areas 1 | . . 1 . Known Exits Taken 2 | . 1 1 . Unknown Exits Taken 1 | 1 . . . Scrap Searched 3 | . . . 3 Spaces Dug . | . . . . Terrain Destroyed 72 | . . . 72 Melee . | . . . . Projectile . | . . . . AOE 72 | . . . 72 Terrain Rammed . | . . . . Walls Destroyed . | . . . . Machines Disabled . | . . . . Actions | -11 -10 -10 -10 --------- Run | Yrd Mat Min Sub Total 1441 | 58 870 177 336 Wait 298 | . 230 68 . Move 1022 | 49 561 96 316 Hop . | . . . . Pick Up 17 | 4 9 2 2 Fast Attach 14 | 5 8 . 1 Attach 7 | . 3 . 4 Detach 3 | . 3 . . Swap 6 | . 2 1 3 Drop 7 | . 6 . 1 Fire 66 | . 47 10 9 Melee . | . . . . Ram . | . . . . Kick 1 | . 1 . . Crush . | . . . . Escape Stasis . | . . . . Rewire . | . . . . Trap . | . . . . Miscellaneous . | . . . . Route ------- -11/Scrapyard -10/Materials (discovered 3 exits: [*Mat] / *Min x2) -10/Mines -10/Subcaves History --------- Turn | Location | Event 12 | -11/Scrapyard | Discovered new exit (range 15) 68 | -11/Scrapyard | Entered Materials 312 | -10/Materials | Build established: Mutant 314 | -10/Materials | Identified exit to Mines 534 | -10/Materials | Discovered new exit (range 3) 1296 | -10/Materials | Entered Mines 1297 | -10/Mines | Learned location of Storage (-8) 1513 | -10/Mines | Core integrity fell below 50% 1565 | -10/Mines | Discovered new exit (range 9) 1577 | -10/Mines | Identified exit to Subcaves 1580 | -10/Mines | Entered Subcaves 1670 | -10/Subcaves | Build established: Scavenger-Mutant 1883 | -10/Subcaves | A swath of the cavern ceiling suddenly collapsed 2122 | -10/Subcaves | Build established: Mutant 2179 | -10/Subcaves | Ambushed by Subdweller buried in earth 2197 | -10/Subcaves | Ambushed by Subdweller buried in earth 2209 | -10/Subcaves | Core integrity fell below 20% 2222 | -10/Subcaves | Destroyed by C2-R2B(R) with Subdweller Shrapnel Launcher Last Messages --------------- 02030_ Acquired 8 matter. 02032_ VL-TJM(O) collects matter. 02072_ VL-TJM(O) puts together Sub. Beam Cannon. 02146_ System corrupted: Component data lost. 02179_ The unstable cave ceiling collapses. 02179_ 32-YCU(R) destroyed. 02180_ BX-NFK(R): "HIDIE!" 02182_ The unstable cave ceiling collapses. 02190_ Aluminum Leg destroyed. 02190_ BX-NFK(R) destroyed. 02192_ Aluminum Leg destroyed. 02192_ Grenade Launcher destroyed. 02193_ The unstable cave ceiling collapses. 02197_ Grenade Launcher destroyed. 02198_ AO-WCY(R): "FREEEEDUMB!" 02199_ The unstable cave ceiling collapses. 02202_ AO-WCY(R) destroyed. 02206_ The unstable cave ceiling collapses. 02208_ Acquired 32 matter. 02210_ The unstable cave ceiling collapses. Map ----- +----------------------------------------------------+ | ????????????## ##???# #?????????????????? | | ???????????## ####### ####??????????????? | | ??????????## ## #??????????????? | | ??????????# ### ##??????????????? | | ??????????# ##### ##???????????????? | | ??????????# ## #### ##????????????????? | | ??????????### ### ##?#???????????????? | | ????????????# ## ##??????????????? | | ????????????## ## #??????????????? | | ????????????# ## #??????????????? | | ????????????## ### ##??????????????? | | ?????????????# ## ##???????????????? | | ?????????????## ## ## ##????????????????? | | ?????????????# ### ###?##?????????????????? | | ?????????????## ## #?????????????????????? | | ?????????##### # ###??####??????????????? | | ?????? #??# ##?????????????? | | ?????? ## ##?## #?????????????? | | ??????? ??#?##### ### ##?????????????? | | ?????? ??????????# ### ##??????????????? | | ??????? ???????### # ##???????????????? | | ?????? ? ?##??## ##???????????????? | | ??????? # ## ??# ##??????????????? | | ???????? ######### #??????????????? | | ?????????? ###O #??????????????? | | ????????????# # @ ;##??????????????? | | ????????????### # #??????????????? | | ????????????# ##??????????????? | | ????????????# & ;#???????????????? | | ????????????## [ * #???????????????? | | ?????????????# #???????????????? | | ?????????????# ! #???????????????? | | ?????????????# #???????????????? | | ????????????# # ;; #???????????????? | | ??????????? ## #####???????????????? | | ??????????# ]R ##???????????????????? | | ??????????## ###????????????????????? | | ???????????# #??????????????????????? | | ???????????#" #??????????????????????? | | ????????????# #??????????????????????? | | ????????????# "##??????????????????????? | | ????????????###" ?????????????????????????? | | ???????????????## ?????????????????????????? | | ????????????????? ?????????????????????????? | | ????????????????? ??????????????????????????? | | ????????????????? ??????????????????????????? | | ????????????????? ??????????????????????????? | | ????????????????????????????????????????????? | | ????????????????????????????????????????????? | | ????????????????????????????????????????????? | +----------------------------------------------------+ Best States ------------- Heat Dissipation 39 Energy Generation 15 Energy Capacity 200 Matter Stores 300 Matter Capacity 300 Sight Range 16 Terrain Scan Density 10 Armor Coverage 100 Evasion (%) 55 Item Schematics ----------------- None Robot Schematics ------------------ None Fabricated ------------ Nothing Alien Tech Used ----------------- None Achievements -------------- None Challenges ------------ None Game ------ Seed LinkedHardenedReconfigurator Manual? 0 Play Time 00:15:41 Cumulative 32.8 hours Start 2024.07.06 @ 23:28:21 End 2024.07.11 @ 13:00:16 Sessions 4 Manual Loads 0 Difficulty Rogue Special Mode None Game No. 36 Rogue 36 Adventurer 0 Explorer 0 Win Type - Total 0 Types 0/0/0/0/0/0/0/0/0 Lore% 36 Gallery% 35 Achievement% 34 Wizard Run 0 Options --------- Layout 1 ASCII 0 Keyboard 0 Movement Numpad Keybinds 0 Fullscreen 1 Font 24/Smallcaps Map View 50x35 Zoom Use 0% Tactical HUD 1 Map Filters NONE Filters NONE Steam 1 RUN: 85cb9543-dd45-4528-8365-b815ef534621